fUST/lending_fUST_20250425
["ID","MTS","AMOUNT","RATE_DAILY","PERIOD"]
[358907682,1745543243902,-403.0,0.00017206,2]
[358907683,1745543243924,-403.0,0.00017206,2]
[358907684,1745543243946,-500.0,0.0001726,2]
[358907685,1745543243968,-500.0,0.0001726,2]
[358907686,1745543243990,-251.52567023,0.0001726,2]
[358907687,1745543244013,-500.0,0.0001726,2]
[358907688,1745543244036,-500.02444241,0.0001726,2]
[358907689,1745543244059,-500.0,0.0001726,2]
[358907690,1745543244081,-500.0,0.0001726,2]
[358907691,1745543244103,-500.0,0.0001726,2]
[358907692,1745543244129,-500.0,0.0001726,2]
[358907693,1745543244150,-500.0,0.0001726,2]
[358907694,1745543244172,-500.0,0.0001726,2]
[358907695,1745543244193,-788.85,0.0001726,2]
[358907696,1745543244215,-500.0,0.0001726,2]
[358907697,1745543244237,-500.0,0.0001726,2]
[358907698,1745543244260,-745.65,0.0001726,2]
[358907699,1745543244284,-500.0,0.0001726,2]
[358907700,1745543244306,-500.0,0.0001726,2]
[358907701,1745543244327,-500.0,0.0001726,2]
[358907702,1745543244347,-2448.0,0.0001726,2]
[358907703,1745543244368,-512.29,0.0001726,2]
[358907704,1745543244389,-500.0,0.0001726,2]
[358907705,1745543244409,-500.0,0.0001726,2]
[358907706,1745543244432,-687.03,0.0001726,2]
[358907707,1745543244453,-573.28,0.0001726,2]
[358907708,1745543244474,-500.0,0.0001726,2]
[358907709,1745543244495,-500.0,0.0001726,2]
[358907710,1745543244517,-151.0,0.0001726,2]
[358907711,1745543244537,-500.0,0.0001726,2]
[358907712,1745543244558,-500.0,0.0001726,2]
[358907713,1745543244584,-500.0,0.0001726,2]
[358907714,1745543244605,-519.01,0.0001726,2]
[358907715,1745543244627,-500.0,0.0001726,2]
[358907716,1745543244648,-500.0,0.0001726,2]
[358907717,1745543244669,-500.0,0.0001726,2]
[358907718,1745543244691,-662.66,0.0001726,2]
[358907719,1745543244711,-500.0,0.0001726,2]
[358907720,1745543244732,-500.0,0.0001726,2]
[358907721,1745543244755,-500.0,0.0001726,2]
[358907722,1745543244779,-500.0,0.0001726,2]
[358907723,1745543244801,-500.0,0.0001726,2]
[358907724,1745543244823,-527.39,0.0001726,2]
[358907725,1745543244844,-695.81,0.0001726,2]
[358907726,1745543244866,-672.91,0.0001726,2]
[358907727,1745543244888,-1587.31,0.0001726,2]
[358907728,1745543244909,-609.61,0.0001726,2]
[358907729,1745543244931,-500.0,0.0001726,2]
[358907730,1745543244952,-214.2740018,0.0001726,2]
[358907731,1745543244974,-500.0,0.0001726,2]
[358907732,1745543244998,-500.0,0.0001726,2]
[358907733,1745543245022,-627.85582215,0.0001726,2]
[358907734,1745543245045,-500.0,0.0001726,2]
[358907735,1745543245068,-500.0,0.0001726,2]
[358907736,1745543245090,-500.0,0.0001726,2]
[358907737,1745543245112,-819.16,0.0001726,2]
[358907738,1745543245135,-500.0,0.0001726,2]
[358907739,1745543245158,-512.49,0.0001726,2]
[358907740,1745543245180,-734.12,0.0001726,2]
[358907741,1745543245201,-500.0,0.0001726,2]
[358907742,1745543245223,-500.0,0.0001726,2]
[358907743,1745543245245,-500.0,0.0001726,2]
[358907744,1745543245269,-500.0,0.0001726,2]
[358907745,1745543245292,-1715.45,0.0001726,2]
[358907746,1745543245314,-393.904863,0.0001726,2]
[358907747,1745543245338,-393.904863,0.0001726,2]
[358907748,1745543245360,-500.0,0.0001726,2]
[358907749,1745543245381,-500.0,0.0001726,2]
[358907750,1745543245405,-534.22,0.0001726,2]
[358907751,1745543245427,-500.0,0.0001726,2]
[358907752,1745543245449,-1608.85,0.0001726,2]
[358907753,1745543245470,-500.0,0.0001726,2]
[358907754,1745543245492,-500.0,0.0001726,2]
[358907755,1745543245516,-6827.91,0.0001726,2]
[358907756,1745543245537,-500.0,0.0001726,2]
[358907757,1745543245558,-2990.53,0.0001726,2]
[358907758,1745543245579,-510.28,0.0001726,2]
[358907759,1745543245600,-776.48,0.0001726,2]
[358907760,1745543245620,-500.0,0.0001726,2]
[358907761,1745543245640,-589.73,0.0001726,2]
[358907762,1745543245660,-380.52045229,0.0001726,2]
[358907763,1745543245681,-500.0,0.0001726,2]
[358907764,1745543245705,-555.48,0.0001726,2]
[358907765,1745543245727,-384.113506,0.0001726,2]
[358907766,1745543245747,-500.0,0.0001726,2]
[358907767,1745543245773,-1263.62,0.0001726,2]
[358907768,1745543245795,-384.113506,0.0001726,2]
[358907769,1745543245815,-667.87,0.0001726,2]
[358907770,1745543245838,-500.0,0.0001726,2]
[358907771,1745543245860,-530.88,0.0001726,2]
[358907772,1745543245882,-531.25,0.0001726,2]
[358907773,1745543245904,-500.0,0.0001726,2]
[358907774,1745543245928,-500.0,0.0001726,2]
[358907775,1745543245948,-500.0,0.0001726,2]
[358907776,1745543246006,-1219.24,0.0001726,2]
[358907777,1745543246026,-500.0,0.0001726,2]
[358907778,1745543246047,-832.0,0.0001726,2]
[358907779,1745543246070,-500.0,0.0001726,2]
[358907780,1745543246091,-500.0,0.0001726,2]
[358907781,1745543246112,-507.88,0.0001726,2]
[358907782,1745543246132,-500.0,0.0001726,2]
[358907783,1745543246154,-2295.48,0.0001726,2]
[358907784,1745543246175,-710.8,0.0001726,2]
[358907785,1745543246196,-1753.22,0.0001726,2]
[358907786,1745543246217,-597.85,0.0001726,2]
[358907787,1745543246238,-500.0,0.0001726,2]
[358907788,1745543246260,-577.03,0.0001726,2]
[358907789,1745543246281,-500.0,0.0001726,2]
[358907790,1745543246302,-500.0,0.0001726,2]
[358907791,1745543246322,-754.72,0.0001726,2]
[358907792,1745543246342,-754.68,0.0001726,2]
[358907793,1745543246364,-2135.14,0.0001726,2]
[358907794,1745543246384,-500.0,0.0001726,2]
[358907795,1745543246405,-500.0,0.0001726,2]
[358907796,1745543246426,-1789.54,0.0001726,2]
[358907797,1745543246446,-533.09,0.0001726,2]
[358907798,1745543246466,-500.0,0.0001726,2]
[358907799,1745543246488,-702.35,0.0001726,2]
[358907800,1745543246508,-500.0,0.0001726,2]
[358907801,1745543246528,-640.85,0.0001726,2]
[358907802,1745543246549,-500.0,0.0001726,2]
[358907803,1745543246569,-5064.79,0.0001726,2]
[358907804,1745543246590,-500.0,0.0001726,2]
[358907805,1745543246610,-603.16,0.0001726,2]
[358907806,1745543246631,-500.0,0.0001726,2]
[358907807,1745543246651,-744.15,0.0001726,2]
[358907808,1745543246672,-1805.43,0.0001726,2]
[358907809,1745543246692,-500.0,0.0001726,2]
[358907810,1745543246714,-1403.65,0.0001726,2]
[358907811,1745543246735,-3983.28,0.0001726,2]
[358907812,1745543246755,-1671.18,0.0001726,2]
[358907813,1745543246779,-4503.75,0.0001726,2]
[358907814,1745543246800,-295.42866128,0.00017276,2]
[358907815,1745543246819,-500.0,0.00017282,2]
[358907816,1745543246839,-1500.0,0.00017295,2]
[358907817,1745543246860,-393.904863,0.000173,2]
[358907818,1745543246881,-393.904863,0.000173,2]
[358907819,1745543246902,-384.113506,0.000173,2]
[358907820,1745543246923,-384.113506,0.000173,2]
[358907821,1745543246946,-153.0,0.0001737,2]
[358907822,1745543246967,-500.0,0.00017534,2]
[358907823,1745543246988,-500.0,0.00017534,2]
[358907824,1745543247010,-500.0,0.00017534,2]
[358907825,1745543247032,-500.0,0.00017534,2]
[358907826,1745543247056,-500.0,0.00017534,2]
[358907827,1745543247077,-500.0,0.00017534,2]
[358907828,1745543247098,-500.0,0.00017534,2]
[358907829,1745543247119,-500.0,0.00017534,2]
[358907830,1745543247139,-500.0,0.00017534,2]
[358907831,1745543247160,-788.85,0.00017534,2]
[358907832,1745543247181,-500.0,0.00017534,2]
[358907833,1745543247202,-500.0,0.00017534,2]
[358907834,1745543247224,-745.65,0.00017534,2]
[358907835,1745543247245,-204.28141777,0.00017534,2]
[358907836,1745543247266,-500.0,0.00017534,2]
[358907837,1745543247288,-500.0,0.00017534,2]
[358907838,1745543247309,-2448.0,0.00017534,2]
[358907839,1745543247331,-512.29,0.00017534,2]
[358907840,1745543247354,-500.0,0.00017534,2]
[358907841,1745543247376,-365.84329233,0.00017534,2]
[358907842,1745543247400,-687.03,0.00017534,2]
[358907843,1745543247421,-573.28,0.00017534,2]
[358907844,1745543247442,-200.3052943,0.00017534,2]
[358907845,1745543247468,-500.0,0.00017534,2]
[358907846,1745543247490,-151.0,0.00017534,2]
[358907847,1745543247513,-151.0,0.00017534,2]
[358907848,1745543247536,-500.0,0.00017534,2]
[358907849,1745543247559,-605.17656382,0.00017534,2]
[358907850,1745543247581,-500.0,0.00017534,2]
[358907851,1745543247603,-519.01,0.00017534,2]
[358907852,1745543247625,-500.0,0.00017534,2]
[358907853,1745543247648,-273.40929836,0.00017534,2]
[358907854,1745543247672,-500.0,0.00017534,2]
[358907855,1745543247694,-662.66,0.00017534,2]
[358907856,1745543247715,-500.0,0.00017534,2]
[358907857,1745543247742,-500.0,0.00017534,2]
[358907858,1745543247769,-305.5045388,0.00017534,2]
[358907859,1745543247792,-500.0,0.00017534,2]
[358907860,1745543247815,-500.0,0.00017534,2]
[358907861,1745543247837,-527.39,0.00017534,2]
[358907862,1745543247862,-695.81,0.00017534,2]
[358907863,1745543247884,-672.91,0.00017534,2]
[358907864,1745543247907,-1587.31,0.00017534,2]
[358907865,1745543247931,-609.61,0.00017534,2]
[358907866,1745543247952,-500.0,0.00017534,2]
[358907867,1745543247976,-500.0,0.00017534,2]
[358907868,1745543247998,-500.0,0.00017534,2]
[358907869,1745543248022,-500.0,0.00017534,2]
[358907870,1745543248045,-500.0,0.00017534,2]
[358907871,1745543248066,-500.0,0.00017534,2]
[358907872,1745543248089,-819.16,0.00017534,2]
[358907873,1745543248110,-500.0,0.00017534,2]
[358907874,1745543248132,-512.49,0.00017534,2]
[358907875,1745543248153,-734.12,0.00017534,2]
[358907876,1745543248175,-500.0,0.00017534,2]
[358907877,1745543248197,-500.0,0.00017534,2]
[358907878,1745543248220,-500.0,0.00017534,2]
[358907879,1745543248243,-500.0,0.00017534,2]
[358907880,1745543248268,-1715.45,0.00017534,2]
[358907881,1745543248292,-393.904863,0.00017534,2]
[358907882,1745543248314,-393.904863,0.00017534,2]
[358907883,1745543248336,-500.0,0.00017534,2]
[358907884,1745543248358,-534.22,0.00017534,2]
[358907885,1745543248381,-644.15260783,0.00017534,2]
[358907886,1745543248406,-1608.85,0.00017534,2]
[358907887,1745543248430,-500.0,0.00017534,2]
[358907888,1745543248456,-500.0,0.00017534,2]
[358907889,1745543248479,-6827.91,0.00017534,2]
[358907890,1745543248508,-500.0,0.00017534,2]
[358907891,1745543248534,-2990.53,0.00017534,2]
[358907892,1745543248560,-510.28,0.00017534,2]
[358907893,1745543248585,-776.48,0.00017534,2]
[358907894,1745543248610,-500.0,0.00017534,2]
[358907895,1745543248635,-589.73,0.00017534,2]
[358907896,1745543248660,-500.0,0.00017534,2]
[358907897,1745543248683,-555.48,0.00017534,2]
[358907898,1745543248705,-384.113506,0.00017534,2]
[358907899,1745543248727,-500.0,0.00017534,2]
[358907900,1745543248750,-1263.62,0.00017534,2]
[358907901,1745543248777,-384.113506,0.00017534,2]
[358907902,1745543248800,-667.87,0.00017534,2]
[358907903,1745543248822,-500.0,0.00017534,2]
[358907904,1745543248844,-530.88,0.00017534,2]
[358907905,1745543248867,-531.25,0.00017534,2]
[358907906,1745543248889,-500.0,0.00017534,2]
[358907907,1745543248911,-500.0,0.00017534,2]
[358907908,1745543248934,-420.23008243,0.00017534,2]
[358907909,1745543248957,-1219.24,0.00017534,2]
[358907910,1745543248980,-500.0,0.00017534,2]
[358907911,1745543249003,-832.0,0.00017534,2]
[358907912,1745543249026,-500.0,0.00017534,2]
[358907913,1745543249048,-500.0,0.00017534,2]
[358907914,1745543249073,-507.88,0.00017534,2]
[358907915,1745543249096,-500.0,0.00017534,2]
[358907916,1745543249120,-2295.48,0.00017534,2]
[358907917,1745543249142,-710.8,0.00017534,2]
[358907918,1745543249166,-1753.22,0.00017534,2]
[358907919,1745543249195,-597.85,0.00017534,2]
[358907920,1745543249219,-500.0,0.00017534,2]
[358907921,1745543249244,-577.03,0.00017534,2]
[358907922,1745543249266,-500.0,0.00017534,2]
[358907923,1745543249289,-500.0,0.00017534,2]
[358907924,1745543249312,-754.72,0.00017534,2]
[358907925,1745543249334,-754.68,0.00017534,2]
[358907926,1745543249357,-2135.14,0.00017534,2]
[358907927,1745543249380,-500.0,0.00017534,2]
[358907928,1745543249405,-500.0,0.00017534,2]
[358907929,1745543249430,-1789.54,0.00017534,2]
[358907930,1745543249453,-533.09,0.00017534,2]
[358907931,1745543249476,-500.0,0.00017534,2]
[358907932,1745543249516,-702.35,0.00017534,2]
[358907933,1745543249544,-500.0,0.00017534,2]
[358907934,1745543249570,-640.85,0.00017534,2]
[358907935,1745543249596,-500.0,0.00017534,2]
[358907936,1745543249622,-5064.79,0.00017534,2]
[358907937,1745543249647,-500.0,0.00017534,2]
[358907938,1745543249673,-603.16,0.00017534,2]
[358907939,1745543249698,-500.0,0.00017534,2]
[358907940,1745543249724,-744.15,0.00017534,2]
[358907941,1745543249757,-1805.43,0.00017534,2]
[358907942,1745543249959,-500.0,0.00017534,2]
[358907943,1745543249983,-1403.65,0.00017534,2]
[358907944,1745543250006,-3983.28,0.00017534,2]
[358907945,1745543250028,-1671.18,0.00017534,2]
[358907946,1745543250050,-4503.75,0.00017534,2]
[358907947,1745543250075,-151.0,0.000176,2]
[358907948,1745543250098,-2000.0,0.00017705,2]
[358907949,1745543250126,-447.05090459,0.00017808,2]
[358907950,1745543250150,-500.0,0.00017808,2]
[358907951,1745543250172,-500.0,0.00017808,2]
[358907952,1745543250194,-500.0,0.00017808,2]
[358907953,1745543250216,-500.0,0.00017808,2]
[358907954,1745543250238,-500.0,0.00017808,2]
[358907955,1745543250263,-500.0,0.00017808,2]
[358907956,1745543250284,-500.0,0.00017808,2]
[358907957,1745543250306,-500.0,0.00017808,2]
[358907958,1745543250330,-788.85,0.00017808,2]
[358907959,1745543250352,-500.0,0.00017808,2]
[358907960,1745543250374,-500.0,0.00017808,2]
[358907961,1745543250396,-745.65,0.00017808,2]
[358907962,1745543250418,-500.0,0.00017808,2]
[358907963,1745543250440,-353.44544372,0.00017808,2]
[358907964,1745543250461,-2448.0,0.00017808,2]
[358907965,1745543250484,-512.29,0.00017808,2]
[358907966,1745543250508,-500.0,0.00017808,2]
[358907967,1745543250531,-687.03,0.00017808,2]
[358907968,1745543250557,-573.28,0.00017808,2]
[358907969,1745543250579,-500.0,0.00017808,2]
[358907970,1745543250601,-151.0,0.00017808,2]
[358907971,1745543250624,-500.0,0.00017808,2]
[358907972,1745543250647,-500.0,0.00017808,2]
[358907973,1745543250678,-519.01,0.00017808,2]
[358907974,1745543250700,-500.0,0.00017808,2]
[358907975,1745543250723,-500.0,0.00017808,2]
[358907976,1745543250746,-662.66,0.00017808,2]
[358907977,1745543250770,-511.495009,0.00017808,2]
[358907978,1745543250792,-615.39368477,0.00017808,2]
[358907979,1745543250815,-500.0,0.00017808,2]
[358907980,1745543250839,-500.0,0.00017808,2]
[358907981,1745543250864,-527.39,0.00017808,2]
[358907982,1745543250888,-695.81,0.00017808,2]
[358907983,1745543250911,-672.91,0.00017808,2]
[358907984,1745543250933,-1587.31,0.00017808,2]
[358907985,1745543250955,-609.61,0.00017808,2]
[358907986,1745543250979,-500.0,0.00017808,2]
[358907987,1745543251001,-500.0,0.00017808,2]
[358907988,1745543251025,-500.0,0.00017808,2]
[358907989,1745543251048,-500.0,0.00017808,2]
[358907990,1745543251070,-500.0,0.00017808,2]
[358907991,1745543251092,-500.0,0.00017808,2]
[358907992,1745543251114,-819.16,0.00017808,2]
[358907993,1745543251136,-500.0,0.00017808,2]
[358907994,1745543251158,-512.49,0.00017808,2]
[358907995,1745543251180,-734.12,0.00017808,2]
[358907996,1745543251202,-500.0,0.00017808,2]
[358907997,1745543251224,-500.0,0.00017808,2]
[358907998,1745543251245,-500.0,0.00017808,2]
[358907999,1745543251268,-500.0,0.00017808,2]
[358908000,1745543251292,-1715.45,0.00017808,2]
[358908001,1745543251314,-393.904863,0.00017808,2]
[358908002,1745543251338,-393.904863,0.00017808,2]
[358908003,1745543251360,-393.904863,0.00017808,2]
[358908004,1745543251382,-393.904863,0.00017808,2]
[358908005,1745543251406,-500.0,0.00017808,2]
[358908006,1745543251431,-534.22,0.00017808,2]
[358908007,1745543251454,-1608.85,0.00017808,2]
[358908008,1745543251481,-500.0,0.00017808,2]
[358908009,1745543251503,-500.0,0.00017808,2]
[358908010,1745543251527,-6827.91,0.00017808,2]
[358908011,1745543251550,-500.0,0.00017808,2]
[358908012,1745543251572,-2990.53,0.00017808,2]
[358908013,1745543251597,-510.28,0.00017808,2]
[358908014,1745543251621,-776.48,0.00017808,2]
[358908015,1745543251647,-500.0,0.00017808,2]
[358908016,1745543251670,-589.73,0.00017808,2]
[358908017,1745543251693,-500.0,0.00017808,2]
[358908018,1745543251716,-555.48,0.00017808,2]
[358908019,1745543251738,-384.113506,0.00017808,2]
[358908020,1745543251765,-384.113506,0.00017808,2]
[358908021,1745543251789,-500.0,0.00017808,2]
[358908022,1745543251812,-1263.62,0.00017808,2]
[358908023,1745543251835,-384.113506,0.00017808,2]
[358908024,1745543251860,-384.113506,0.00017808,2]
[358908025,1745543251885,-667.87,0.00017808,2]
[358908026,1745543251910,-500.0,0.00017808,2]
[358908027,1745543251946,-530.88,0.00017808,2]
[358908028,1745543251969,-531.25,0.00017808,2]
[358908029,1745543251992,-500.0,0.00017808,2]
[358908030,1745543252016,-500.0,0.00017808,2]
[358908031,1745543252039,-1219.24,0.00017808,2]
[358908032,1745543252064,-500.0,0.00017808,2]
[358908033,1745543252087,-832.0,0.00017808,2]
[358908034,1745543252110,-500.0,0.00017808,2]
[358908035,1745543252133,-500.0,0.00017808,2]
[358908036,1745543252156,-507.88,0.00017808,2]
[358908037,1745543252179,-500.0,0.00017808,2]
[358908038,1745543252202,-2295.48,0.00017808,2]
[358908039,1745543252224,-710.8,0.00017808,2]
[358908040,1745543252248,-1753.22,0.00017808,2]
[358908041,1745543252272,-597.85,0.00017808,2]
[358908042,1745543252294,-500.0,0.00017808,2]
[358908043,1745543252317,-577.03,0.00017808,2]
[358908044,1745543252338,-500.0,0.00017808,2]
[358908045,1745543252360,-500.0,0.00017808,2]
[358908046,1745543252382,-754.72,0.00017808,2]
[358908047,1745543252404,-754.68,0.00017808,2]
[358908048,1745543252427,-2135.14,0.00017808,2]
[358908049,1745543252449,-500.0,0.00017808,2]
[358908050,1745543252471,-500.0,0.00017808,2]
[358908051,1745543252494,-1789.54,0.00017808,2]
[358908052,1745543252517,-533.09,0.00017808,2]
[358908053,1745543252539,-500.0,0.00017808,2]
[358908054,1745543252562,-702.35,0.00017808,2]
[358908055,1745543252584,-500.0,0.00017808,2]
[358908056,1745543252606,-640.85,0.00017808,2]
[358908057,1745543252629,-500.0,0.00017808,2]
[358908058,1745543252651,-5064.79,0.00017808,2]
[358908059,1745543252674,-500.0,0.00017808,2]
[358908060,1745543252697,-603.16,0.00017808,2]
[358908061,1745543252720,-500.0,0.00017808,2]
[358908062,1745543252741,-744.15,0.00017808,2]
[358908063,1745543252768,-1805.43,0.00017808,2]
[358908064,1745543252790,-500.0,0.00017808,2]
[358908065,1745543252814,-1403.65,0.00017808,2]
[358908066,1745543252838,-3983.28,0.00017808,2]
[358908067,1745543252861,-1671.18,0.00017808,2]
[358908068,1745543252884,-4503.75,0.00017808,2]
[358908069,1745543252907,-679.0527685,0.00017901,2]
[358908070,1745543252930,-500.0,0.00017973,2]
[358908071,1745543252953,-500.0,0.00017973,2]
[358908072,1745543252976,-284.34477399,0.00017973,2]
[358908073,1745543252997,-500.34761357,0.00017973,2]
[358908074,1745543253021,-500.0,0.00017973,2]
[358908075,1745543253043,-500.28271184,0.00017973,2]
[358908076,1745543253066,-235.78385416,0.00017973,2]
[358908077,1745543253089,-500.35451025,0.00017973,2]
[358908078,1745543253112,-500.0,0.00017973,2]
[358908079,1745543253135,-500.0,0.00017973,2]
[358908080,1745543253159,-500.0,0.00017973,2]
[358908081,1745543253181,-500.0,0.00017973,2]
[358908082,1745543253204,-500.0,0.00017973,2]
[358908083,1745543253228,-500.0,0.00017973,2]
[358908084,1745543253250,-500.0,0.00017973,2]
[358908085,1745543253274,-500.27445466,0.00017973,2]
[358908086,1745543253297,-500.0,0.00017973,2]
[358908087,1745543253319,-581.35849224,0.00017973,2]
[358908088,1745543253341,-501.59335915,0.00017973,2]
[358908089,1745543253364,-403.51506283,0.00017973,2]
[358908090,1745543253388,-500.0,0.00017973,2]
[358908091,1745543253412,-252.01722051,0.00017973,2]
[358908092,1745543253434,-528.73344489,0.00017973,2]
[358908093,1745543253456,-500.35306572,0.00017973,2]
[358908094,1745543253478,-500.0,0.00017973,2]
[358908095,1745543253500,-500.0,0.00017973,2]
[358908096,1745543253524,-500.0,0.00017973,2]
[358908097,1745543253547,-7249.46320501,0.00018,2]
[358908098,1745543254646,-500.26,0.00016438,2]
[358908099,1745543254666,-500.0,0.00016473,2]
[358908100,1745543254685,-500.26,0.00016712,2]
[358908101,1745543254706,-556.77,0.00016986,2]
[358908102,1745543254726,-500.26,0.00016986,2]
[358908103,1745543254745,-556.77,0.0001726,2]
[358908104,1745543254767,-500.26,0.0001726,2]
[358908105,1745543254787,-556.77,0.00017534,2]
[358908106,1745543254807,-500.26,0.00017534,2]
[358908107,1745543254826,-556.77,0.00017808,2]
[358908108,1745543254845,-500.26,0.00017808,2]
[358908109,1745543254864,-500.0,0.00017973,2]
[358908110,1745543254883,-443.19438905,0.00017973,2]
[358908111,1745543254902,-284.0,0.00017973,2]
[358908112,1745543254921,-500.0,0.00017973,2]
[358908113,1745543254940,-363627.23182898,0.00018,2]
[358908114,1745543254959,-151.0,0.00018,2]
[358908115,1745543254980,-393.904863,0.00018,2]
[358908116,1745543254999,-393.904861,0.00018,2]
[358908117,1745543255020,-384.113506,0.00018,2]
[358908118,1745543255040,-384.113504,0.00018,2]
[358908119,1745543255060,-500.0,0.00018082,2]
[358908120,1745543255081,-500.0,0.00018082,2]
[358908121,1745543255100,-500.0,0.00018082,2]
[358908122,1745543255120,-500.0,0.00018082,2]
[358908123,1745543255140,-500.0,0.00018082,2]
[358908124,1745543255161,-500.0,0.00018082,2]
[358908125,1745543255180,-500.0,0.00018082,2]
[358908126,1745543255200,-500.0,0.00018082,2]
[358908127,1745543255220,-788.85,0.00018082,2]
[358908128,1745543255240,-500.0,0.00018082,2]
[358908129,1745543255260,-500.0,0.00018082,2]
[358908130,1745543255282,-745.65,0.00018082,2]
[358908131,1745543255302,-500.0,0.00018082,2]
[358908132,1745543255321,-2448.0,0.00018082,2]
[358908133,1745543255341,-512.29,0.00018082,2]
[358908134,1745543255361,-500.0,0.00018082,2]
[358908135,1745543255381,-687.03,0.00018082,2]
[358908136,1745543255401,-573.28,0.00018082,2]
[358908137,1745543255422,-500.0,0.00018082,2]
[358908138,1745543255442,-151.0,0.00018082,2]
[358908139,1745543255461,-319.30520824,0.00018082,2]
[358908140,1745543255481,-500.0,0.00018082,2]
[358908141,1745543255501,-519.01,0.00018082,2]
[358908142,1745543255522,-500.0,0.00018082,2]
[358908143,1745543255542,-500.0,0.00018082,2]
[358908144,1745543255562,-662.66,0.00018082,2]
[358908145,1745543255584,-500.0,0.00018082,2]
[358908146,1745543255606,-500.0,0.00018082,2]
[358908147,1745543255628,-527.39,0.00018082,2]
[358908148,1745543255649,-695.81,0.00018082,2]
[358908149,1745543255669,-672.91,0.00018082,2]
[358908150,1745543255691,-1587.31,0.00018082,2]
[358908151,1745543255712,-609.61,0.00018082,2]
[358908152,1745543255732,-500.0,0.00018082,2]
[358908153,1745543255755,-500.0,0.00018082,2]
[358908154,1745543255780,-500.0,0.00018082,2]
[358908155,1745543255801,-500.0,0.00018082,2]
[358908156,1745543255825,-500.0,0.00018082,2]
[358908157,1745543255846,-164.53567183,0.00018082,2]
[358908158,1745543255868,-819.16,0.00018082,2]
[358908159,1745543255892,-500.0,0.00018082,2]
[358908160,1745543255915,-512.49,0.00018082,2]
[358908161,1745543255939,-734.12,0.00018082,2]
[358908162,1745543255959,-581.23887534,0.00018082,2]
[358908163,1745543255987,-500.0,0.00018082,2]
[358908164,1745543256009,-500.0,0.00018082,2]
[358908165,1745543256030,-500.0,0.00018082,2]
[358908166,1745543256051,-500.0,0.00018082,2]
[358908167,1745543256072,-534.22,0.00018082,2]
[358908168,1745543256094,-1608.85,0.00018082,2]
[358908169,1745543256116,-500.0,0.00018082,2]
[358908170,1745543256140,-500.0,0.00018082,2]
[358908171,1745543256164,-6827.91,0.00018082,2]
[358908172,1745543256186,-500.0,0.00018082,2]
[358908173,1745543256208,-2990.53,0.00018082,2]
[358908174,1745543256231,-510.28,0.00018082,2]
[358908175,1745543256255,-776.48,0.00018082,2]
[358908176,1745543256277,-500.0,0.00018082,2]
[358908177,1745543256298,-589.73,0.00018082,2]
[358908178,1745543256318,-500.0,0.00018082,2]
[358908179,1745543256339,-555.48,0.00018082,2]
[358908180,1745543256359,-500.0,0.00018082,2]
[358908181,1745543256379,-1263.62,0.00018082,2]